Cogmind - Beta 16 @@@ ROGUE MODE // 2025.11.06 @ 20:41:23 Player: Velocity Result: Destroyed by G-34 Mercenary with Small Laser Performance ------------- Evolutions (1) 500 Regions Visited (3) 600 Robots Destroyed (33) 165 Value Destroyed (582) 582 Prototype IDs (2) 40 Alien Tech Used (0) 0 Bonus (7) 7 TOTAL SCORE: 1894 Bonus ------- Follower Combat Kills 7 Cogmind --------- Core Integrity 0/400 Matter 275/300 Energy 100/100 System Corruption 0% Temperature Cool (6) Movement Core (350) Ox6 Location -9/Materials Parts ------- > --- POWER (1) -------- (None) > --- PROPULSION (2) --- (None) > --- UTILITY (4) ------ Large Storage Unit > --- WEAPON (2) ------- Light Assault Rifle > --- INVENTORY (15) --- Light Ion Engine Light Nuclear Core Flight Unit Flight Unit Flight Unit Flight Unit Faulty Improved Flight Unit Faulty Improved Flight Unit Improved Flight Unit Improved Flight Unit Improved Flight Unit Heat Sink Improved Terrain Scanner Rocket Launcher Hammer Peak State ------------ > --- POWER ------------ Ion Engine > --- PROPULSION ------- Aluminum Leg Aluminum Leg > --- UTILITY ---------- Large Storage Unit Thief Drone Bay > --- WEAPON ----------- Light Assault Rifle Mining Laser > --- INVENTORY -------- Ion Engine Light Ion Engine Aluminum Leg Aluminum Leg Flight Unit Flight Unit Flight Unit Flight Unit Flight Unit Flight Unit Improved Terrain Scanner Assault Rifle Grenade Launcher Hammer [Rating: 14] Favorites ----------- Power Ion Engine Engine Ion Engine Propulsion Aluminum Leg Treads Light Treads Leg Aluminum Leg Flight Unit Improved Flight Unit Utility Large Storage Unit Device Seismic Detector Storage Large Storage Unit Processor Salvage Targeting Computer Weapon Light Assault Rifle Ballistic Gun Light Assault Rifle Launcher EMP Blaster Special Weapon Mining Laser Build | -11 -10 -10 -9 ------- Run | Yrd Mat Min Mat Slots Evolved 2 | . . . 2 Power . | . . . . Propulsion . | . . . . Utility 2 | . . . 2 Weapon . | . . . . Parts Attached 28 | 7 6 4 11 Power 3 | 1 . . 2 Engine 3 | 1 . . 2 Core . | . . . . Reactor . | . . . . Propulsion 8 | 2 3 . 3 Treads 2 | . . . 2 Leg 5 | 2 3 . . Wheel . | . . . . Hover . | . . . . Flight 1 | . . . 1 Utility 9 | 2 2 1 4 Device 6 | 1 . 1 4 Storage 2 | 1 1 . . Processor 1 | . 1 . . Hackware . | . . . . Protection . | . . . . Artifact . | . . . . Weapon 8 | 2 1 3 2 Energy Gun . | . . . . Energy Cannon . | . . . . Ballistic Gun 6 | 2 . 2 2 Ballistic Cannon . | . . . . Launcher 1 | . 1 . . Special Weapon 1 | . . 1 . Impact Weapon . | . . . . Slashing Weapon . | . . . . Piercing Weapon . | . . . . Special Melee Weapon . | . . . . Unidentified Prototypes 2 | . . 1 1 Parts Lost 14 | . . 1 13 Power 3 | . . . 3 Propulsion 3 | . . . 3 Utility 5 | . . 1 4 Weapon 3 | . . . 3 Highest Loss Streak 11 | . . 1 11 To Critical Strikes . | . . . . Average Backups 11 | 2 7 13 13 Power 1 | . 1 1 1 Propulsion 6 | 1 4 7 8 Utility 1 | . 1 1 1 Weapon 1 | . 1 2 1 Tool/Special . | . . . . Unused Backups 20 | . 2 . 18 Power 2 | . . . 2 Propulsion 13 | . 2 . 11 Utility 2 | . . . 2 Weapon 3 | . . . 3 Tool/Special . | . . . . Average Slot Usage (%) 92 | . 99 95 80 Engine 12 | . 14 14 9 Leg 24 | . 28 28 16 Device 15 | . 14 10 22 Storage 13 | . 14 14 11 Ballistic Gun 21 | . 27 18 19 Special Weapon 3 | . . 9 . Peak Build Rating 14 | 7 8 14 12 Average Rating 8 | 5 7 7 9 On Entrance 5 | . 7 8 7 Avg Prop Armor Cover (%) 8 | . . . 8 Naked Turns . | . . . . Heaviest Build 31 | 14 29 31 31 Greatest Support 46 | 20 20 20 46 Greatest Overweight (x) 6 | 1 1 1 6 Average Overweight (x) . | . . 1 1 Largest Inventory Capacity 15 | 8 15 15 15 Average Capacity 13 | 7 10 15 15 Most Carried 15 | 4 11 14 15 Average Carried 11 | 2 7 13 13 Final Capacity 15 | 8 15 15 15 Final Carried 15 | 4 10 14 15 Class Distribution -------------------- 73% | Mutant 21% | Scavenger-Mutant 5% | Infiltrator-Mutant Dominant Class ---------------- Mutant | -10/Materials Mutant | -10/Mines Scavenger-Mutant | -9/Materials Resources | -11 -10 -10 -9 ----------- Run | Yrd Mat Min Mat Matter Collected 789 | 261 209 122 197 Remotely . | . . . . Salvage Created 1113 | 146 317 83 567 Parts 71 | 11 24 5 31 Haulers Intercepted 4 | . 2 . 2 Recyclers Shooed 2 | . . 1 1 Parts Field Recycled . | . . . . Retrieved Matter . | . . . . Parts Self-Destructed . | . . . . Prevented . | . . . . Parts Restored . | . . . . Kills | -11 -10 -10 -9 ------- Run | Yrd Mat Min Mat Combat Hostiles Destroyed 22 | . 7 5 10 Melee 1 | . . . 1 Guns 21 | . 7 5 9 Classes Destroyed 7 | 2 4 . 1 Builder 1 | . 1 . . Tunneler 4 | 4 . . . Hauler 4 | . 2 . 2 Recycler 2 | 1 . . 1 Swarmer 11 | . 3 5 3 Grunt 9 | . 4 . 5 Sentry 2 | . . . 2 Best Kill Streak 6 | 4 6 2 5 Combat Bots Only 5 | . 5 2 4 Max Kills in Single Turn 2 | 1 2 1 1 Gunslinging 1 | . 1 . . Exploded . | . . . . Melee 1 | . . . 1 Uniques/NPCs Destroyed . | . . . . Combat | -11 -10 -10 -9 -------- Run | Yrd Mat Min Mat Hostile Shots Fired 246 | . 46 39 161 Missed 65 | . 17 14 34 Hits 181 | . 29 25 127 Projectile 181 | . 29 25 127 Critical Strikes 5 | . . . 5 Damage Taken 1890 | . 286 208 1396 Core 494 | . 46 43 405 Absorbed by Shields . | . . . . Core Remaining (%) 82 | 100 . 64 . Volleys Fired 130 | 9 39 19 63 Largest 2 | 2 2 2 2 Hottest 40 | 40 40 40 40 Shots Fired 220 | 18 78 28 96 Gun 220 | 18 78 28 96 Cannon . | . . . . Launcher . | . . . . Special . | . . . . Kinetic 220 | 18 78 28 96 Thermal . | . . . . Explosive . | . . . . Electromagnetic . | . . . . Robot Hit Streak 13 | 5 6 7 13 Robot Miss Streak 6 | 2 4 6 4 Penetration Max . | . . . . Secondary Targets 3 | . 2 . 1 Max Gunslinging Chain 1 | . 1 . 1 Shots Hit Robots 139 | 10 43 13 73 Core Hits 66 | 7 18 6 35 Critical Kills . | . . . . Critical Parts Destroyed 1 | . . . 1 Critical Strikes 1 | . . . 1 Destroy 1 | . . . 1 Melee Attacks . | . . . . Impact . | . . . . Slashing . | . . . . Piercing . | . . . . Sneak Attacks . | . . . . Combat Hostiles . | . . . . Follow-up Attacks . | . . . . Damage Inflicted 1333 | 126 486 145 576 Guns 1315 | 126 474 145 570 Cannons . | . . . . Explosions . | . . . . Melee . | . . . . Ramming 18 | . 12 . 6 Kinetic 1315 | 126 474 145 570 Thermal . | . . . . Explosive . | . . . . Electromagnetic . | . . . . Impact . | . . . . Slashing . | . . . . Piercing . | . . . . Highest Corruption . | . . . . Average Corruption . | . . . . Corruption Purged . | . . . . Corruption Blocked . | . . . . Overload Shots . | . . . . Overflow Damage . | . . . . Projectiles . | . . . . Explosions . | . . . . Melee . | . . . . Knockbacks . | . . . . Impact . | . . . . Kinetic . | . . . . Secondary . | . . . . Self-Inflicted Damage . | . . . . Shots . | . . . . Rammed 3 | . . . 3 Targets Rammed 12 | . 7 . 5 Kicked 8 | . 7 . 1 Crushed 1 | . . . 1 Highest Temperature 399 | . 6 . 399 Average Temperature 58 | . 6 . 82 Received Heat Transfer 549 | . 90 . 459 Effects 1 | . . . 1 Shutdowns 1 | . . . 1 Siege Activations . | . . . . Martial Activations . | . . . . Shielding Activations . | . . . . Robots Disrupted . | . . . . Combat Hostiles . | . . . . Robots Corrupted . | . . . . Combat Hostiles . | . . . . Parts Fried . | . . . . Impact Corruptions . | . . . . Robots Melted . | . . . . Combat Hostiles . | . . . . Parts Melted 1 | . . 1 . Heat Transferred . | . . . . Parts Sabotaged . | . . . . Parts Stolen . | . . . . Parts Stripped . | . . . . Power Chain Reactions . | . . . . Alert | -11 -10 -10 -9 ------- Run | Yrd Mat Min Mat Maximum Alert Level . | . . . . Low Security (%) 100 | 100 100 100 100 Level 1 . | . . . . Level 2 . | . . . . Level 3 . | . . . . Level 4 . | . . . . Level 5 . | . . . . High Security . | . . . . Max Security . | . . . . Peak Influence 120 | 10 120 74 97 Initial 13 | . . 13 . Average 29 | 2 61 15 26 Influence Increases 743 | 25 205 144 369 Destroy 0b10 Robot/C 460 | . 140 120 200 Destroy 0b10 Robot/NC 55 | 25 15 . 15 Destroy Leader 118 | . 34 20 64 Allied During Kill 4 | . . 4 . Disable Machine 15 | . 15 . . Destroy Structure 1 | . 1 . . Lose Combat Pursuer 90 | . . . 90 Influence Decreases 662 | 25 169 180 288 Entered New Map 23 | . . 23 . Time Decay 519 | 25 169 157 168 Lost Part 120 | . . . 120 Squads Dispatched 6 | . 4 . 2 Investigation 1 | . 1 . . Extermination . | . . . . Reinforcement 5 | . 3 . 2 Assault . | . . . . Garrison . | . . . . Intercept . | . . . . Searches Triggered . | . . . . Construction Impeded . | . . . . Haulers Reinforced . | . . . . Active Scanning Responses . | . . . . Cargo Convoy Interrupts . | . . . . Stealth | -11 -10 -10 -9 --------- Run | Yrd Mat Min Mat Distress Signals . | . . . . Communications Jammed . | . . . . Distress Signals . | . . . . Times Spotted 36 | . 11 5 20 Peak Tracking Total 7 | . 3 3 7 Tactical Retreats 4 | . . . 4 Traps | -11 -10 -10 -9 ------- Run | Yrd Mat Min Mat Traps Triggered 2 | . 2 . . Indirectly . | . . . . Trap Hack Attempts . | . . . . Triggered . | . . . . Disarmed . | . . . . Reprogrammed . | . . . . Reused . | . . . . Traps Extracted . | . . . . Installed . | . . . . Triggered . | . . . . Machines | -11 -10 -10 -9 ---------- Run | Yrd Mat Min Mat Machines Disabled 1 | . 1 . . Max in Single Turn 1 | . 1 . . Machines Repaired . | . . . . Machines Dismantled . | . . . . Machines Sabotaged . | . . . . Overloaded Fab Kills . | . . . . Hacking | -11 -10 -10 -9 --------- Run | Yrd Mat Min Mat Machines Accessed 3 | . 2 1 . Terminals 2 | . 2 . . Fabricators . | . . . . Repair Stations . | . . . . Recycling Units . | . . . . Scanalyzers . | . . . . Garrison Access . | . . . . Total Hacks 5 | . 4 1 . Successful 1 | . . 1 . Failed 4 | . 4 . . Catastrophic 1 | . 1 . . Database Lockouts . | . . . . Manual 2 | . 2 . . Terminals 4 | . 4 . . Fabricators . | . . . . Repair Stations . | . . . . Recycling Units . | . . . . Scanalyzers . | . . . . Garrison Access . | . . . . Terminal Hacks 1 | . . 1 . Open Door 1 | . . 1 . Fabricator Hacks . | . . . . Repair Station Hacks . | . . . . Recycling Unit Hacks . | . . . . Scanalyzer . | . . . . Garrison Access Hacks . | . . . . Unauthorized Hacks . | . . . . Terminals . | . . . . Fabricators . | . . . . Repair Stations . | . . . . Recycling Units . | . . . . Scanalyzers . | . . . . Garrison Access . | . . . . Data Cores Recovered . | . . . . Used . | . . . . Hacking Detections 2 | . 2 . . Full Trace Events 1 | . 1 . . Feedback Events . | . . . . Feedback Blocked . | . . . . Robot Schematics Acquired . | . . . . Robots Built . | . . . . Authchips . | . . . . Time . | . . . . Total Robot Build Rating . | . . . . Part Schematics Acquired . | . . . . Parts Built . | . . . . Authchips . | . . . . Time . | . . . . Total Part Build Rating . | . . . . Part Studies Acquired . | . . . . Parts Repaired . | . . . . Time . | . . . . Parts Recycled . | . . . . Recycled Matter . | . . . . Retrieved Matter . | . . . . Retrieved Components . | . . . . Parts Scanalyzed . | . . . . Part Schematics Acquired . | . . . . Parts Damaged . | . . . . Bothacking | -11 -10 -10 -9 ------------ Run | Yrd Mat Min Mat Used RIF Installer . | . . . . Robots Hacked . | . . . . Non-combat . | . . . . Combat . | . . . . Robot Hacks Applied . | . . . . Relay Couplers Released . | . . . . Fabnet Peak Effective % . | . . . . Robots Rewired . | . . . . Allies Hacked . | . . . . Hacks Repelled . | . . . . Allies | -11 -10 -10 -9 -------- Run | Yrd Mat Min Mat Total Allies 1 | . . 1 . Largest Group 1 | . . 1 . Highest-Rated Group 31 | . . 31 . Highest-Rated Ally 31 | . . 31 . Total Orders . | . . . . Ally Attacks 7 | . . 7 . Total Damage 103 | . . 103 . Kills 1 | . . 1 . Allies Corrupted . | . . . . Allies Melted . | . . . . Intel | -11 -10 -10 -9 ------- Run | Yrd Mat Min Mat Active Infowar (turns) 1421 | 13 452 504 452 Terrain 400 | . . . 400 Structural 178 | . . . 178 Seismic 969 | 13 452 504 . ECM 1 | . . . 1 Robot Analysis Total . | . . . . Derelict Logs Recovered . | . . . . Drone Launches 3 | . . 3 . Drone Recoveries . | . . . . Exploration | -11 -10 -10 -9 ------------- Run | Yrd Mat Min Mat Turns Passed 1824 | 123 455 709 537 Spaces Moved 797 | 73 214 339 171 Core 7 | 6 . . 1 Treads 14 | . . . 14 Legs 776 | 67 214 339 156 Wheels . | . . . . Hover . | . . . . Flight . | . . . . Fastest Speed 50 | 50 120 190 160 Average Speed 172 | 114 148 190 194 Slowest Speed 350 | 120 190 190 350 Overloaded Moves . | . . . . Propulsion Burnouts . | . . . . Robots Hopped . | . . . . Potential Cave-ins . | . . . . Cave-ins Triggered . | . . . . Exploration Rate (%) 34 | 4 48 67 20 Regions Visited 3 Branch Regions 1 Pre-discovered Areas . | . . . . Known Exits Taken . | . . . . Unknown Exits Taken 3 | 1 1 1 . Scrap Searched 1 | . . 1 . Spaces Dug . | . . . . Terrain Destroyed . | . . . . Melee . | . . . . Projectile . | . . . . AOE . | . . . . Terrain Rammed . | . . . . Walls Destroyed . | . . . . Machines Disabled . | . . . . Actions | -11 -10 -10 -9 --------- Run | Yrd Mat Min Mat Total 1040 | 92 281 380 287 Wait 24 | . . 6 18 Move 794 | 72 213 338 171 Hop . | . . . . Pick Up 24 | 4 6 5 9 Fast Attach 24 | 7 3 5 9 Attach 3 | . 1 . 2 Detach 1 | . 1 . . Swap 7 | . 4 1 2 Drop 21 | . 7 6 8 Fire 130 | 9 39 19 63 Melee . | . . . . Ram 3 | . . . 3 Kick 8 | . 7 . 1 Crush 1 | . . . 1 Escape Stasis . | . . . . Rewire . | . . . . Trap . | . . . . Miscellaneous . | . . . . Route ------- -11/Scrapyard -10/Materials (discovered 2 exits: *Mat / *Min) -10/Mines -9/Materials History --------- Turn | Location | Event 5 | -11/Scrapyard | Discovered new exit (range 15) 124 | -11/Scrapyard | Entered Materials 307 | -10/Materials | Discovered new exit (range 4) 317 | -10/Materials | Build established: Mutant 569 | -10/Materials | Discovered new exit (range 4) 579 | -10/Materials | Entered Mines 582 | -10/Mines | Received a Mining Laser from a helpful Derelict 651 | -10/Mines | Met a Derelict bent on vengeance 826 | -10/Mines | Found the Drone Emporium 835 | -10/Mines | Found Prototype Device 835 | -10/Mines | Identified Thief Drone Bay 1269 | -10/Mines | Discovered new exit (range 9) 1288 | -10/Mines | Entered Materials 1288 | -9/Materials | Evolved 2 slots: Utility x2 1780 | -9/Materials | Core integrity fell below 50% 1804 | -9/Materials | Core integrity fell below 20% 1820 | -9/Materials | Lost 11 parts (2p3n3u3w) 1825 | -9/Materials | Destroyed by G-34 Mercenary with Small Laser Last Messages --------------- 01781_ Acquired 1 matter. 01781_ Lgt. Assault Rifle destroyed. 01782_ K-01 Serf collects debris. 01783_ Slammed into S-10 Pest. 01783_ K-01 Serf collects debris. 01787_ Slammed into S-10 Pest. 01788_ K-01 Serf collects debris. 01789_ Terrain Scanner destroyed. 01790_ Slammed into S-10 Pest. 01794_ S-10 Pest destroyed. 01794_ K-01 Serf collects debris. 01796_ K-01 Serf cleans the Terminal. 01797_ Critical hit (Burn: +37). 01797_ Acquired Lgt. Assault Rifle. 01798_ K-01 Serf cleans the Terminal. 01800_ Critical hit (Burn: +37). 01801_ K-01 Serf cleans the Terminal. 01811_ K-01 Serf collects debris. 01813_ Y-45 Defender destroyed. 01814_ K-01 Serf collects debris. Map ----- +----------------------------------------------------+ | ?????????????????????????????????????????????????? | | ?????????????????????????????????????????????????? | | ?????????????????????????????????????????????????? | | ?????????????????????????????????????????????????? | | ?????????????????????????????????????????????????? | | ?????????????????????????????????????????????????? | | ?????????????????????????????????????????????????? | | ?????????????????????????????????????????????????? | | ?????????????????????????????????????????????????? | | ?????????????????????????????????????????????????? | | ????????????????????????? ?????????????????????? | | ????????????????????????? ????????????????????? | | ???????????????????????? ????????????????????? | | ????????????????????????# #????????????????????? | | ????????????????????????# #????????????????????? | | ????????????????????????# #???? ????? ?#???????? | | ????????????????????????# +???? ??????????#????? | | ??????????????????? ?? ?# #?????? ?????????????? | | ????????????????????????# #???? ????? ?#???????? | | ????????????????????"???# #? ???????????? ??? ? | | ????????????????????????# # ? ?????? ???? ????? | | ??????????????????#?????# #???????????? ??????? | | ???????????????????#????# a#???? ??#????????? ?? | | ??????????????????#?????# #???"? ?#???????????? | | ??????????????????#?????# !#??? ? ?# ??# ??????? | | ???????????????????????##@k[###????#????? ??????" | | ???????????????????????##%*%##??##??????# | | ???????????????????????#!u[%=##################### | | ??????????????????#????# ""%%k== % = % | | ??????????????????#???## T=*=*==! =%####### #### | | ???????????????? g [!=*% =#??#?## ## | | ???????????????# ##### #####+#####?## ## | | ???????????????????????####### #???# ## | | ???????????????? ?????????#??# ##??# ## | | ????????????????????????#????# #???# ## | | ?????????????????? ??????????# """ ###?# ## | | ????????????????????????#????# """""#?#?# ## | | ???????????????????? ????? ??# """""##??# ## | | ?????????????????????????????# % """""#???# #### | | ???????????????????????? ????# """ #??## #### | | ?????????????????????????????# #??## #### | | ?????????????????????????????##########??## | | ??????????????????????????????? ?????????## # | | ?????????????????????????????????????????## # | | ???????????????????????????????? ????? ???## # | | ????????????????????????? ?????? ??????????? # | | ?????????????????????????? ????????????????? # | | ?????????????????????????????????????????#?? # | | ???????????????????????????????????????????????+# | | ?????????????????????????? ?????#?????????????? # | +----------------------------------------------------+ Best States ------------- Heat Dissipation 28 Energy Generation 10 Energy Capacity 250 Matter Stores 300 Matter Capacity 300 Sight Range 16 Terrain Scan Range 14 Terrain Scan Density 10 Additional Mass Support 6 Evasion (%) 55 Recoil Reduction 2 Item Schematics ----------------- None Robot Schematics ------------------ None Fabricated ------------ Nothing Repaired ---------- Nothing Studied --------- None Alien Tech Used ----------------- None Achievements -------------- None Challenges ------------ None Game ------ Seed PiercingAntimissileBasin Manual? 0 Play Time 00:17:07 Cumulative 23.8 hours Start 2025.11.06 @ 20:23:03 End 2025.11.06 @ 20:41:23 Sessions 1 Manual Loads 0 Difficulty Rogue Special Mode None Game No. 11 Rogue 5 Adventurer 5 Explorer 1 Win Type - Total 1 Types 1/0/0/0/0/0/0/0/0/0 Lore% 12 Gallery% 29 Achievement% 19 Wizard Run 0 Options --------- Layout 1 ASCII 0 Keyboard 0 Movement Mouse Keybinds 0 Fullscreen 1 Font 24/Crisp Map View 50x35 Zoom Use 0% Tactical HUD 1 Map Filters NONE Filters NONE Steam 1 RUN: 85410e98-0367-412e-aabb-7527b0765a9d